bitfinex-derivatives/quotes_ETHF0:USTF0_20250503
["timestamp","ask_amount","ask_price","bid_price","bid_amount"]
[1746234628682,1.08841,1836.7,1836.6,2.68812]
[1746234628879,1.90931,1836.7,1836.6,2.68812]
[1746234629081,3.57561,1836.7,1836.6,2.68812]
[1746234630182,3.57561,1836.7,1836.6,1.08842]
[1746234630989,1.08847,1836.6,1836.5,6.77048]
[1746234631191,2.83177,1836.6,1836.5,6.77048]
[1746234632096,1.90935,1836.7,1836.6,1.08847]
[1746234632292,3.441,1836.7,1836.6,2.81377]
[1746234632493,3.441,1836.7,1836.6,3.65497]
[1746234632894,4.52941,1836.7,1836.6,3.65497]
[1746234633191,61.07381205,1836.8,1836.7,1.08841]
[1746234633398,61.07381205,1836.8,1836.7,2.81371]
[1746234643098,2.72104,1836.7,1836.3,7.2627174]
[1746234643288,1.08907,1835.6,1835.5,7.4387242]
[1746234643494,8.37120976,1835.6,1835.5,6.2277642]
[1746234643688,8.82383221,1835.6,1835.5,5.0948742]
[1746234643889,4.74949353,1835.6,1835.5,5.0948742]
[1746234644089,8.38249353,1835.6,1835.5,5.0948742]
[1746234644595,8.38249353,1835.6,1835.5,46.8736742]
[1746234644596,0.45262353,1835.6,1835.5,46.8736742]
[1746234645096,1.54169353,1835.6,1835.5,46.8736742]
[1746234645297,1.54169353,1835.6,1835.5,5.0948742]
[1746234645701,1.54169353,1835.6,1835.5,46.8736742]
[1746234646095,1.97554346,1835.6,1835.5,46.8736742]
[1746234646491,3.66984346,1835.6,1835.5,46.8736742]
[1746234648596,2.58077346,1835.6,1835.5,46.8736742]
[1746234648791,0.8611,1835.9,1835.5,55.0814742]
[1746234649104,1.08889,1835.9,1835.8,21.7788]
[1746234649291,1.56255765,1835.9,1835.8,21.7788]
[1746234649490,1.56255765,1835.9,1835.8,10.8894]
[1746234650095,1.08901,1835.7,1835.6,2.5466]
[1746234650297,1.56267765,1835.7,1835.6,20.8756]
[1746234650500,1.56267765,1835.7,1835.6,42.6544]
[1746234650801,1.56244668,1835.7,1835.6,42.6544]
[1746234650990,1.56244668,1835.7,1835.6,41.7788]
[1746234651589,1.56244668,1835.7,1835.6,21.7788]
[1746234652590,1.08913,1835.5,1835.4,3.2078]
[1746234652795,1.56256668,1835.5,1835.4,24.29699]
[1746234652995,1.56256668,1835.5,1835.4,46.07579]
[1746234653200,1.08913,1835.5,1835.4,44.9866]
[1746234653605,1.08913,1835.5,1835.4,41.7788]
[1746234654801,1.08913,1835.5,1835.4,42.86799]
[1746234655002,1.08913,1835.5,1835.4,41.7788]
[1746234656504,1.08913,1835.5,1835.4,42.86799]
[1746234656704,1.08913,1835.5,1835.4,41.7788]
[1746234657298,1.08913,1835.5,1835.4,42.86799]
[1746234659114,1.08911,1835.6,1835.5,1.08907]
[1746234659611,1.08911,1835.6,1835.5,42.86787]
[1746234659909,4.29684,1835.7,1835.6,1.08907]
[1746234660209,4.29684,1835.7,1835.6,22.86787]
[1746234660412,4.29684,1835.7,1835.6,42.86787]
[1746234660611,4.29684,1835.7,1835.6,41.7788]
[1746234660814,4.29684,1835.7,1835.6,21.7788]
[1746234661208,1.08907,1835.6,1835.5,1.09638536]
[1746234661714,1.08907,1835.6,1835.5,42.87518536]
[1746234661904,1.51736638,1835.6,1835.5,42.87518536]
[1746234663208,0.42829638,1835.6,1835.5,42.87518536]
[1746234663605,1.08907,1835.6,1835.5,42.87518536]
[1746234664317,4.29685,1835.7,1835.6,1.08907]
[1746234664613,1.08905,1835.7,1835.6,23.71667]
[1746234664813,1.08905,1835.7,1835.6,43.71667]
[1746234665118,1.51777602,1835.7,1835.6,43.71667]
[1746234665513,1.99139686,1835.7,1835.6,43.71667]
[1746234666011,1.51777602,1835.7,1835.6,43.71667]
[1746234666207,0.42872602,1835.7,1835.6,43.71667]
[1746234666414,0.42872602,1835.7,1835.6,47.73667]
[1746234666607,0.42872602,1835.7,1835.6,44.52887]
[1746234666914,60.41413807,1835.7,1835.6,44.52887]
[1746234667108,60.41413807,1835.7,1835.6,47.73667]
[1746234667313,59.98541205,1835.7,1835.6,47.73667]
[1746234667514,59.98541205,1835.7,1835.6,49.35147]
[1746234669618,60.41537929,1835.7,1835.6,54.35147]
[1746234669811,60.41537929,1835.7,1835.6,49.35147]
[1746234670117,59.98541205,1835.7,1835.6,54.35147]
[1746234670305,59.98541205,1835.7,1835.6,29.35147]
[1746234670705,59.98541205,1835.7,1835.6,54.35147]
[1746234670914,60.41577393,1835.7,1835.6,54.35147]
[1746234672516,60.89215841,1835.7,1835.6,54.35147]
[1746234672908,60.41577393,1835.7,1835.6,54.35147]
[1746234675721,60.41577393,1835.7,1835.6,60.26747]
[1746234675910,60.41577393,1835.7,1835.6,55.26747]
[1746234676716,60.41577393,1835.7,1835.6,60.26747]
[1746234678421,59.98541205,1835.7,1835.6,60.26747]
[1746234678813,59.98541205,1835.7,1835.6,55.26747]
[1746234680119,46.75356198,1835.7,1835.6,60.26747]
[1746234680419,46.75356198,1835.7,1835.6,55.26747]
[1746234680724,46.75356198,1835.7,1835.6,24.37807]
[1746234680924,48.31850547,1835.7,1835.6,11.82767]
[1746234681125,48.31850547,1835.7,1835.6,5.916]
[1746234681420,1.08907,1835.6,1835.5,1.09632536]
[1746234681621,5.02920349,1835.6,1835.5,1.09632536]
[1746234681920,5.46013167,1835.6,1835.5,1.09632536]
[1746234682320,5.46013167,1835.6,1835.5,0.00725536]
[1746234684121,5.46013167,1835.6,1835.5,1.09638536]
[1746234686023,5.45995035,1835.6,1835.5,1.09638536]
[1746234687228,5.45995035,1835.6,1835.5,0.00725536]
[1746234690127,5.45995035,1835.6,1835.5,1.09638536]
[1746234690528,5.45995035,1835.6,1835.5,0.00725536]
[1746234691020,6.15455909,1835.6,1835.5,0.00725536]
[1746234692330,4.40485909,1835.6,1835.5,1.09638536]
[1746234692528,6.14605909,1835.6,1835.5,1.09638536]
[1746234693129,6.1456645,1835.6,1835.5,0.00725536]
[1746234693328,6.1456645,1835.6,1835.5,1.09638536]
[1746234695131,5.0565945,1835.6,1835.5,1.09638536]
[1746234695522,5.0565945,1835.6,1835.5,22.87518536]
[1746234695725,3.3153945,1835.6,1835.5,22.87518536]
[1746234696332,3.3153945,1835.6,1835.5,24.57018536]
[1746234696629,3.31533947,1835.6,1835.5,24.57018536]
[1746234697132,50.06890145,1835.6,1835.5,24.57018536]
[1746234698031,49.37429271,1835.6,1835.5,24.57018536]
[1746234698428,49.37429582,1835.6,1835.5,24.57018536]
[1746234700025,49.37439277,1835.6,1835.5,24.57018536]
[1746234700226,48.94346483,1835.6,1835.5,24.57018536]
[1746234700525,49.37396334,1835.6,1835.5,24.57018536]
[1746234700727,49.37396313,1835.6,1835.5,24.57018536]
[1746234700923,49.37396896,1835.6,1835.5,24.57018536]
[1746234701133,49.37396604,1835.6,1835.5,24.57018536]
[1746234701335,49.3739669,1835.6,1835.5,44.57018536]
[1746234701634,48.89859809,1835.6,1835.5,44.57018536]
[1746234701833,49.37405384,1835.6,1835.5,44.57018536]
[1746234702031,49.37405439,1835.6,1835.5,44.57018536]
[1746234702236,49.37408747,1835.6,1835.5,44.57018536]
[1746234702427,49.37414327,1835.6,1835.5,44.57018536]
[1746234702626,48.89862737,1835.6,1835.5,44.57018536]
[1746234702828,49.37415222,1835.6,1835.5,44.57018536]
[1746234703022,48.94358499,1835.6,1835.5,44.57018536]
[1746234703224,49.37420509,1835.6,1835.5,47.77798536]
[1746234703429,48.89868057,1835.6,1835.5,47.77798536]
[1746234703629,49.37427294,1835.6,1835.5,47.77798536]
[1746234703831,49.37428094,1835.6,1835.5,47.77798536]
[1746234704031,48.89871932,1835.6,1835.5,47.77798536]
[1746234704338,49.37427152,1835.6,1835.5,47.77798536]
[1746234704531,48.89871932,1835.6,1835.5,47.77798536]
[1746234704927,49.37435056,1835.6,1835.5,47.77798536]
[1746234705131,49.37434788,1835.6,1835.5,47.77798536]
[1746234705331,49.37434728,1835.6,1835.5,47.77798536]
[1746234705535,49.37443232,1835.6,1835.5,47.77798536]
[1746234705838,49.37443181,1835.6,1835.5,47.77798536]
[1746234706140,49.37443177,1835.6,1835.5,47.77798536]
[1746234706341,49.37447418,1835.6,1835.5,47.77798536]
[1746234706534,48.89871932,1835.6,1835.5,47.77798536]
[1746234706732,49.374582,1835.6,1835.5,47.77798536]
[1746234706928,48.89871932,1835.6,1835.5,47.77798536]
[1746234707138,49.3745794,1835.6,1835.5,47.77798536]
[1746234707340,49.37459501,1835.6,1835.5,47.77798536]
[1746234707527,49.37459566,1835.6,1835.5,47.77798536]
[1746234707733,49.37472977,1835.6,1835.5,47.77798536]
[1746234708039,49.3751338,1835.6,1835.5,47.77798536]
[1746234708246,49.37516973,1835.6,1835.5,47.77798536]
[1746234708437,49.37516963,1835.6,1835.5,47.77798536]
[1746234708638,48.51376963,1835.6,1835.5,47.77798536]
[1746234708839,47.66086438,1835.6,1835.5,47.77798536]
[1746234709040,47.66088246,1835.6,1835.5,47.77798536]
[1746234709339,47.18462442,1835.6,1835.5,47.77798536]
[1746234709930,46.75356198,1835.6,1835.5,47.77798536]
[1746234711140,47.61366198,1835.6,1835.5,47.77798536]
[1746234711740,46.75356198,1835.6,1835.5,47.77798536]
[1746234727751,42.65487198,1835.6,1835.5,56.38998536]
[1746234727952,42.65487198,1835.6,1835.5,42.30598536]
[1746234727953,18.51987198,1835.6,1835.5,42.30598536]
[1746234728151,0.55464795,1835.6,1835.5,42.30598536]
[1746234728654,7.95e-06,1835.6,1835.5,42.30598536]
[1746234730149,7.95e-06,1835.6,1835.5,37.30598536]
[1746234735160,7.95e-06,1835.6,1835.5,37.29873]
[1746234736760,7.95e-06,1835.6,1835.5,20.49333]
[1746234737458,5.29594217,1835.7,1835.6,1.09606832]
[1746234738859,6.38495217,1835.7,1835.6,1.09606832]
[1746234739061,5.29594217,1835.7,1835.6,1.09606832]
[1746234739662,6.38495217,1835.7,1835.6,1.09606832]
[1746234741066,8.88535625,1835.7,1835.6,1.09606832]
[1746234742161,13.88535625,1835.7,1835.6,0.00699832]
[1746234742863,13.88535625,1835.7,1835.6,1.09606832]
[1746234743058,14.34673254,1835.7,1835.6,1.09606832]
[1746234743665,14.77822039,1835.7,1835.6,1.09606832]
[1746234743866,14.77812914,1835.7,1835.6,1.09606832]
[1746234744054,14.34662774,1835.7,1835.6,1.09606832]
[1746234744258,14.77810002,1835.7,1835.6,1.09606832]
[1746234744462,26.3094705,1835.7,1835.6,1.09606832]
[1746234744758,25.84826445,1835.7,1835.6,1.09606832]
[1746234745264,25.84814148,1835.7,1835.6,1.09606832]
[1746234745568,25.84814148,1835.7,1835.6,0.00699832]
[1746234745764,26.30929213,1835.7,1835.6,0.00699832]
[1746234745962,26.30920458,1835.7,1835.6,0.00699832]
[1746234746158,25.84806659,1835.7,1835.6,0.00699832]
[1746234746361,21.30911912,1835.7,1835.6,0.00699832]
[1746234746568,21.30903921,1835.7,1835.6,0.00699832]
[1746234747460,21.30899821,1835.7,1835.6,0.00699832]
[1746234747661,20.84806659,1835.7,1835.6,0.00699832]
[1746234747860,21.30895259,1835.7,1835.6,0.00699832]
[1746234748362,20.84806659,1835.7,1835.6,0.00699832]
[1746234748570,21.30886091,1835.7,1835.6,0.00699832]
[1746234749866,20.84806659,1835.7,1835.6,0.00699832]
[1746234750168,24.05586659,1835.7,1835.6,0.00699832]
[1746234750972,20.84806659,1835.7,1835.6,1.09606832]
[1746234751169,21.30885848,1835.7,1835.6,1.09606832]
[1746234751371,21.30865377,1835.7,1835.6,13.59256832]
[1746234751570,20.84783686,1835.7,1835.6,13.59256832]
[1746234751769,19.16373686,1835.7,1835.6,13.59256832]
[1746234751969,19.62454771,1835.7,1835.6,13.59256832]
[1746234752171,19.16372982,1835.7,1835.6,13.59256832]
[1746234752367,19.62439498,1835.7,1835.6,13.59256832]
[1746234752572,19.62439503,1835.7,1835.6,13.59256832]
[1746234752869,19.62432343,1835.7,1835.6,13.59256832]
[1746234753472,19.16362177,1835.7,1835.6,13.59256832]
[1746234753672,19.62441616,1835.7,1835.6,13.59256832]
[1746234753875,19.62441903,1835.7,1835.6,13.59256832]
[1746234754168,9.91200968,1835.7,1835.6,13.59256832]
[1746234754372,8.75673015,1835.7,1835.6,13.59256832]
[1746234754672,8.78658893,1835.7,1835.6,13.59256832]
[1746234754868,8.32579629,1835.7,1835.6,13.59256832]
[1746234755071,9.21760718,1835.7,1835.6,13.59256832]
[1746234755267,9.21758616,1835.7,1835.6,13.59256832]
[1746234755670,8.7568145,1835.7,1835.6,13.59256832]
[1746234756062,9.2175149,1835.7,1835.6,13.59256832]
[1746234756267,8.7568145,1835.7,1835.6,13.59256832]
[1746234756667,9.21753749,1835.7,1835.6,13.59256832]
[1746234757175,9.91202048,1835.7,1835.6,13.59256832]
[1746234757373,9.91198765,1835.7,1835.6,24.48196832]
[1746234757675,9.91201406,1835.7,1835.6,24.48196832]
[1746234757875,9.91201415,1835.7,1835.6,24.48196832]
[1746234758268,9.91202098,1835.7,1835.6,24.48196832]
[1746234758469,9.45126077,1835.7,1835.6,24.48196832]
[1746234758670,9.91202358,1835.7,1835.6,24.48196832]
[1746234758870,9.91202428,1835.7,1835.6,24.48196832]
[1746234759081,8.36225077,1835.7,1835.6,24.48196832]
[1746234759378,8.82356346,1835.7,1835.6,24.48196832]
[1746234759677,8.8240971,1835.7,1835.6,24.48196832]
[1746234759877,8.82410779,1835.7,1835.6,24.48196832]
[1746234760078,8.824109,1835.7,1835.6,24.48196832]
[1746234760277,8.82407369,1835.7,1835.6,24.48196832]
[1746234760477,8.82407748,1835.7,1835.6,24.48196832]
[1746234760777,8.82407735,1835.7,1835.6,24.48196832]
[1746234761181,8.82408424,1835.7,1835.6,24.48196832]
[1746234761476,8.82408442,1835.7,1835.6,24.48196832]
[1746234761676,8.82408067,1835.7,1835.6,24.48196832]
[1746234761976,8.82407734,1835.7,1835.6,24.48196832]
[1746234762164,8.82410251,1835.7,1835.6,24.48196832]
[1746234762981,4.51045789,1835.7,1835.6,24.48196832]
[1746234763179,4.07895982,1835.7,1835.6,24.48196832]
[1746234763372,4.04927905,1835.7,1835.6,24.48196832]
[1746234763572,4.5106737,1835.7,1835.6,24.48196832]
[1746234764381,4.04926724,1835.7,1835.6,24.48196832]
[1746234764681,4.51065108,1835.7,1835.6,24.48196832]
[1746234764873,4.510631,1835.7,1835.6,24.48196832]
[1746234765069,4.51063323,1835.7,1835.6,24.48196832]
[1746234765270,4.04924602,1835.7,1835.6,24.48196832]
[1746234765471,4.51062938,1835.7,1835.6,24.48196832]
[1746234765671,4.04924602,1835.7,1835.6,24.48196832]
[1746234765872,4.5106291,1835.7,1835.6,24.48196832]
[1746234766175,4.51064154,1835.7,1835.6,24.48196832]
[1746234766482,4.04924602,1835.7,1835.6,24.48196832]
[1746234766682,4.51076113,1835.7,1835.6,24.48196832]
[1746234767573,4.51074692,1835.7,1835.6,24.48196832]
[1746234767981,4.51073053,1835.7,1835.6,24.48196832]
[1746234768181,4.04929372,1835.7,1835.6,24.48196832]
[1746234768478,4.51072135,1835.7,1835.6,24.48196832]
[1746234768781,4.04929372,1835.7,1835.6,24.48196832]
[1746234768982,4.5107208,1835.7,1835.6,24.48196832]
[1746234769174,4.5107145,1835.7,1835.6,24.48196832]
[1746234769371,4.51069037,1835.7,1835.6,24.48196832]
[1746234769583,4.51068911,1835.7,1835.6,24.48196832]
[1746234769789,4.51069248,1835.7,1835.6,24.48196832]
[1746234769982,4.04929372,1835.7,1835.6,24.48196832]
[1746234770285,4.51069716,1835.7,1835.6,24.48196832]
[1746234770482,4.51070011,1835.7,1835.6,24.48196832]
[1746234770683,4.51070059,1835.7,1835.6,24.48196832]
[1746234770880,4.51069834,1835.7,1835.6,24.48196832]
[1746234771180,4.51067323,1835.7,1835.6,24.48196832]
[1746234771483,4.51067246,1835.7,1835.6,24.48196832]
[1746234771885,4.51076679,1835.7,1835.6,24.48196832]
[1746234772886,4.51069059,1835.7,1835.6,24.48196832]
[1746234773186,4.51068885,1835.7,1835.6,24.48196832]
[1746234773486,4.04931048,1835.7,1835.6,24.48196832]
[1746234773687,0.89297492,1835.7,1835.6,24.48196832]
[1746234774282,0.89297306,1835.7,1835.6,24.48196832]
[1746234774589,0.89297441,1835.7,1835.6,24.48196832]
[1746234774778,0.89296049,1835.7,1835.6,24.48196832]
[1746234774979,0.89296038,1835.7,1835.6,24.48196832]
[1746234775285,3.61767904,1835.8,1835.7,1.08901]
[1746234775479,4.510518,1835.8,1835.7,24.50481]
[1746234775685,4.51050872,1835.8,1835.7,24.50481]
[1746234775887,4.51051672,1835.8,1835.7,24.50481]
[1746234776075,4.51051689,1835.8,1835.7,24.50481]
[1746234776276,4.51048365,1835.8,1835.7,24.50481]
[1746234776887,4.51039881,1835.8,1835.7,24.50481]
[1746234777189,4.51039942,1835.8,1835.7,24.50481]
[1746234777381,4.5103997,1835.8,1835.7,24.50481]
[1746234777583,4.04913351,1835.8,1835.7,24.50481]
[1746234777888,4.51042035,1835.8,1835.7,24.50481]
[1746234778086,4.51042024,1835.8,1835.7,24.50481]
[1746234778388,5.20489887,1835.8,1835.7,24.50481]
[1746234778588,5.20491536,1835.8,1835.7,24.50481]
[1746234778788,5.20506424,1835.8,1835.7,24.50481]
[1746234778990,5.205107,1835.8,1835.7,24.50481]
[1746234779286,5.20522218,1835.8,1835.7,24.50481]
[1746234779480,5.20523679,1835.8,1835.7,24.50481]
[1746234779682,5.2052377,1835.8,1835.7,24.50481]
[1746234779989,5.20524359,1835.8,1835.7,24.50481]
[1746234780190,4.74363542,1835.8,1835.7,24.50481]
[1746234780489,5.2054508,1835.8,1835.7,24.50481]
[1746234781093,5.20542044,1835.8,1835.7,24.50481]
[1746234781991,5.2054801,1835.8,1835.7,24.50481]
[1746234782192,4.51106491,1835.8,1835.7,24.50481]
[1746234782788,4.501942,1835.8,1835.7,24.50481]
[1746234782988,4.50194325,1835.8,1835.7,24.50481]
[1746234783188,4.5019421,1835.8,1835.7,24.50481]
[1746234783391,4.50204936,1835.8,1835.7,24.50481]
[1746234783590,4.50208684,1835.8,1835.7,24.50481]
[1746234783892,4.50208931,1835.8,1835.7,24.50481]
[1746234784093,4.50208947,1835.8,1835.7,24.50481]
[1746234784282,4.04956354,1835.8,1835.7,24.50481]
[1746234784487,3.40172077,1835.8,1835.7,24.50481]
[1746234784690,2.22662258,1835.8,1835.7,24.50481]
[1746234784886,1.77406966,1835.8,1835.7,24.50481]
[1746234785289,1.77408934,1835.8,1835.7,24.50481]
[1746234786196,0.4318503,1835.8,1835.7,24.50481]
[1746234787491,0.88440133,1835.8,1835.7,24.50481]
[1746234787883,0.88440514,1835.8,1835.7,24.50481]
[1746234788084,0.88440102,1835.8,1835.7,24.50481]
[1746234788289,0.88440411,1835.8,1835.7,24.50481]
[1746234788490,5.42651856,1836.0,1835.9,1.08889]
[1746234788693,5.42651856,1836.0,1835.9,26.07549]
[1746234789191,5.42651856,1836.0,1835.9,27.67749]
[1746234790798,5.42651856,1836.2,1836.1,1.08877]
[1746234790993,5.42651856,1836.2,1836.1,11.97817]
[1746234791193,5.42651856,1836.2,1836.1,1.08877]
[1746234791401,5.42651856,1836.2,1836.1,2.76137]
[1746234791793,5.42651856,1836.2,1836.1,13.65077]
[1746234791998,5.42651856,1836.2,1836.1,24.54017]
[1746234792198,5.42651856,1836.2,1836.1,25.40927]
[1746234793100,5.42651856,1836.2,1836.1,26.20217]
[1746234794697,5.42651856,1836.2,1836.1,15.31277]
[1746234795002,5.42651856,1836.2,1836.1,29.40997]
[1746234795902,1.6796,1836.3,1836.2,1.08871]
[1746234796103,1.6796,1836.3,1836.2,24.45001]
[1746234796304,1.6796,1836.3,1836.2,13.56061]
[1746234796996,1.6796,1836.3,1836.2,24.45001]
[1746234799505,1.6796,1836.3,1836.2,13.56061]
[1746234799815,1.6796,1836.3,1836.2,24.45001]
[1746234800001,5.42651856,1836.5,1836.4,1.08859]
[1746234800204,8.73001856,1836.5,1836.4,1.08859]
[1746234800406,8.73001856,1836.5,1836.4,2.81059]
[1746234800607,9.15711319,1836.5,1836.4,2.81059]
[1746234801308,9.15711319,1836.5,1836.4,1.08859]
[1746234802812,3.73059463,1836.5,1836.4,1.08859]
[1746234803312,3.73059463,1836.5,1836.4,2.73859]
[1746234804409,3.73068563,1836.5,1836.4,2.73859]
[1746234804910,4.81921563,1836.5,1836.4,1.08859]
[1746234805108,3.73068563,1836.5,1836.4,1.08859]
[1746234805401,4.81930134,1836.5,1836.4,1.08859]
[1746234805606,3.73077134,1836.5,1836.4,1.08859]
[1746234806810,3.73090395,1836.5,1836.4,1.08859]
[1746234808312,3.3035,1836.5,1836.4,1.08859]
[1746234808515,3.73117134,1836.5,1836.4,1.08859]
[1746234809203,3.73116882,1836.5,1836.4,1.08859]
[1746234810012,1.08859,1836.4,1836.3,2.78801]
[1746234810207,2.15708125,1836.4,1836.3,13.67745]
[1746234811413,0.42768125,1836.4,1836.3,24.56685]
[1746234814208,0.42267467,1836.4,1836.3,1.08865]
[1746234814413,2.06397467,1836.4,1836.3,1.08865]
[1746234815015,3.15256467,1836.4,1836.3,1.08865]
[1746234816318,2.06397467,1836.4,1836.3,1.08865]
[1746234816516,1.51126467,1836.4,1836.3,11.97805]
[1746234816705,0.42267467,1836.4,1836.3,11.97805]
[1746234816910,3.18606467,1836.4,1836.3,11.97805]
[1746234817517,9.30683673,1836.4,1836.3,1.08865]
[1746234818215,8.88416206,1836.4,1836.3,1.08865]
[1746234823315,7.79557206,1836.4,1836.3,1.08865]
[1746234823515,8.88416206,1836.4,1836.3,1.08865]
[1746234823918,8.88416206,1836.4,1836.3,2.73925]
[1746234826420,7.79557206,1836.4,1836.3,2.73925]
[1746234826719,6.12077206,1836.4,1836.3,24.51805]
[1746234827123,0.6942535,1836.4,1836.3,25.38725]
[1746234829022,0.6942535,1836.4,1836.3,28.59505]
[1746234829218,0.6942535,1836.4,1836.3,33.59505]
[1746234829612,7.23678629,1836.5,1836.3,38.4224]
[1746234829832,2.26820195,1836.6,1836.5,22.86733]
[1746234830123,2.26820195,1836.6,1836.5,29.57813]
[1746234830325,10.88891516,1836.9,1836.8,1.08836]
[1746234830519,10.88891516,1836.9,1836.8,29.57796]
[1746234831122,10.88891516,1836.9,1836.8,34.57796]
[1746234832323,10.88891516,1836.9,1836.8,29.57796]
[1746234832521,11.31593399,1836.9,1836.8,29.57796]
[1746234833627,11.31593399,1836.9,1836.8,31.24436]
[1746234835333,0.42701883,1836.9,1836.8,31.24436]
[1746234835832,5.43434208,1837.2,1837.1,1.08818]
[1746234836031,5.43434208,1837.2,1837.1,22.86698]
[1746234836331,5.86061391,1837.2,1837.1,22.86698]
[1746234836724,5.86061391,1837.2,1837.1,24.56658]
[1746234837627,5.86061391,1837.2,1837.1,28.06858]
[1746234839931,0.42627183,1837.2,1837.1,28.06858]
[1746234840430,0.42627183,1837.2,1837.1,5.2016]
[1746234840632,2.01357183,1837.2,1837.1,4.59018]
[1746234840834,3.10169183,1837.2,1837.1,4.59018]
[1746234842430,2.01357183,1837.2,1837.1,4.59018]
[1746234842932,7.01357183,1837.2,1836.9,5.916]
[1746234843134,3.50701,1837.1,1837.0,1.08823]
[1746234843331,3.93328183,1837.1,1837.0,1.08823]
[1746234843528,3.93328183,1837.1,1836.9,5.916]
[1746234843725,2.88017183,1837.0,1836.9,7.0043]
[1746234844135,3.96841183,1837.0,1836.9,7.0043]
[1746234844328,1.0883,1836.9,1836.8,1.08833]
[1746234844533,2.6997,1836.9,1836.8,1.08833]
[1746234845235,3.12597183,1836.9,1836.8,1.08833]
[1746234845836,3.12597183,1836.9,1836.7,1.08837]
[1746234845837,1.08838,1836.8,1836.7,1.08837]
[1746234846134,4.08965183,1836.8,1836.7,22.86717]
[1746234846333,4.08965183,1836.8,1836.7,1.08837]
[1746234846738,3.66338,1836.8,1836.7,1.08837]
[1746234847036,4.08934506,1836.8,1836.7,1.08837]
[1746234850339,1.08841,1836.7,1836.6,3.63542]
[1746234850542,3.55191,1836.7,1836.6,22.86722]
[1746234850731,2.88946506,1836.7,1836.6,22.86722]
[1746234851037,0.42596506,1836.7,1836.6,22.86722]
[1746234851937,1.51437506,1836.7,1836.6,22.86722]
[1746234852137,3.09577506,1836.7,1836.6,22.86722]
[1746234852636,3.09577506,1836.7,1836.6,1.08842]
[1746234852835,1.08847,1836.6,1836.5,1.08848]
[1746234853034,3.52277,1836.6,1836.5,22.86728]
[1746234853338,3.94873506,1836.6,1836.5,22.86733]
[1746234853840,1.08853,1836.5,1836.4,3.502]
[1746234854032,3.48113,1836.5,1836.4,1.08859]
[1746234854531,3.90709506,1836.5,1836.4,1.08859]
[1746234856941,1.08869,1836.3,1836.2,1.08867]
[1746234857127,1.08869,1836.3,1836.2,11.97807]
[1746234857331,1.08869,1836.3,1836.2,22.86747]
[1746234857541,2.31465506,1836.3,1836.2,22.86747]
[1746234858438,1.08886,1836.0,1835.9,1.08884]
[1746234858739,2.3899,1836.2,1835.9,21.7788]
[1746234858939,3.53055694,1836.1,1836.0,1.0888]
[1746234859240,3.53056566,1836.1,1836.0,1.0888]
[1746234859942,3.53026089,1836.1,1836.0,1.0888]
[1746234860542,1.08886,1836.0,1835.9,1.08883]
[1746234860740,2.80766,1836.0,1835.9,11.97823]
[1746234860936,3.23362506,1836.0,1835.9,22.86763]
[1746234861439,3.67025589,1836.0,1835.9,22.86763]
[1746234862039,1.08889,1835.9,1835.8,2.77451]
[1746234862240,5.3489166,1835.9,1835.8,24.55331]
[1746234862540,5.3489166,1835.9,1835.8,22.86771]
[1746234865039,5.3489166,1835.9,1835.8,21.7788]
[1746234865633,5.3489166,1835.9,1835.8,23.3639]
[1746234865935,5.34813192,1835.9,1835.8,24.45285]
[1746234866437,4.91228577,1835.9,1835.8,24.45285]
[1746234866637,4.91228577,1835.9,1835.8,2.67405]
[1746234866844,1.08901,1835.7,1835.6,1.08904]
[1746234867035,9.25915914,1835.9,1835.5,1.0891]
[1746234867036,1.08913,1835.6,1835.5,1.0891]
[1746234867338,1.08913,1835.6,1835.5,24.4708]
[1746234867532,1.51502577,1835.6,1835.5,24.4708]
[1746234869243,1.95088945,1835.6,1835.5,23.3817]
[1746234869442,1.51502577,1835.6,1835.5,23.3817]
[1746234871250,1.51502577,1835.6,1835.5,24.47083]
[1746234874448,5.15844288,1835.6,1835.5,23.3817]
[1746234874646,5.15847131,1835.6,1835.5,23.3817]
[1746234874857,4.72282577,1835.6,1835.5,24.47083]
[1746234875456,6.41092577,1835.6,1835.5,23.3817]
[1746234876158,6.41092577,1835.6,1835.5,24.47083]
[1746234877962,2.33852577,1835.6,1835.5,24.47083]
[1746234878356,1.51502577,1835.6,1835.5,24.47083]
[1746234878756,1.51502577,1835.6,1835.5,23.3817]
[1746234878960,1.51502577,1835.6,1835.5,24.47083]
[1746234879262,1.95092635,1835.6,1835.5,24.47083]
[1746234879662,1.95092635,1835.6,1835.5,23.3817]
[1746234879863,1.95092635,1835.6,1835.5,13.58143]
[1746234880164,1.95094107,1835.6,1835.5,13.58143]
[1746234881865,1.95135061,1835.6,1835.5,12.4923]
[1746234882054,1.95135061,1835.6,1835.5,13.58143]
[1746234882258,3.67505061,1835.6,1835.5,13.58143]
[1746234884766,3.67571263,1835.6,1835.5,13.58143]
[1746234885367,3.67571263,1835.6,1835.5,24.47083]
[1746234885666,3.67596491,1835.6,1835.5,24.47083]
[1746234886367,3.67596491,1835.6,1835.5,23.3817]
[1746234886962,3.67596491,1835.6,1835.5,24.47083]
[1746234887359,3.67628977,1835.6,1835.5,23.3817]
[1746234887970,3.67628977,1835.6,1835.5,24.47083]
[1746234889569,3.67628977,1835.6,1835.5,23.3817]
[1746234890766,3.23872577,1835.6,1835.5,23.3817]
[1746234890958,3.67707658,1835.6,1835.5,23.3817]
[1746234891557,3.67707658,1835.6,1835.5,24.47083]
[1746234892564,3.67707658,1835.6,1835.5,23.3817]
[1746234893272,3.67707658,1835.6,1835.5,24.47083]
[1746234894068,3.67707658,1835.6,1835.5,23.3817]
[1746234894369,3.67742839,1835.6,1835.5,23.3817]
[1746234897170,3.67742839,1835.6,1835.5,24.47083]
[1746234898172,3.67781789,1835.6,1835.5,24.47083]
[1746234899772,3.67794503,1835.6,1835.5,23.3817]
[1746234901277,3.67794541,1835.6,1835.5,24.47083]
[1746234902772,3.67794541,1835.6,1835.5,23.3817]
[1746234903666,1.0893,1835.2,1835.1,3.508]
[1746234903872,0.43921964,1835.2,1835.1,5.3995]
[1746234904171,0.43921964,1835.2,1835.1,27.1783]
[1746234904575,1.95441541,1835.2,1835.1,27.1783]
[1746234904878,0.86511541,1835.2,1835.1,27.1783]
[1746234905068,0.86511541,1835.2,1835.1,29.6957]
[1746234905571,1.95441541,1835.2,1835.1,29.6957]
[1746234906276,1.95420019,1835.2,1835.1,29.6957]
[1746234908779,5.18289301,1835.2,1835.1,29.6957]
[1746234908981,5.18289301,1835.2,1835.1,32.9035]
[1746234909175,5.18289301,1835.2,1835.1,37.9035]
[1746234909379,4.74388859,1835.2,1835.1,37.9035]